fUST/lending_fUST_20240514
["ID","MTS","AMOUNT","RATE_DAILY","PERIOD"]
[326984641,1715680232372,-154.79876161,0.00035,4]
[326984643,1715680232381,-1331.46927635,0.00035,7]
[326984645,1715680232391,-1331.46927635,0.00035,7]
[326984647,1715680232400,-1331.46927635,0.000371,7]
[326984649,1715680232409,-1331.46927635,0.000371,7]
[326984651,1715680232418,-1452.51193783,0.000392,11]
[326984653,1715680232427,-1452.51193783,0.000392,11]
[326984655,1715680232436,-1520.38399232,0.0004,4]
[326984657,1715680232445,-1671.77511501,0.0004,2]
[326984659,1715680232454,-1476.7231934,0.0004,4]
[326984661,1715680232463,-2508.69248315,0.00041,2]
[326984663,1715680232472,-1452.51193783,0.000413,11]
[326984665,1715680232481,-1452.51193783,0.000413,11]
[326984667,1715680232490,-175.05153097,0.00043033,2]
[326984669,1715680232499,-1573.55459932,0.000434,15]
[326984671,1715680232509,-1573.55459932,0.000434,15]
[326984673,1715680232518,-1573.55459932,0.000455,15]
[326984675,1715680232527,-1573.55459932,0.000455,15]
[326984677,1715680232536,-1840.48318898,0.0005,2]
[326984678,1715680232546,-153.0,0.00051557,2]
[326984680,1715680232555,-153.0,0.00051557,2]
[326984682,1715680232564,-153.0,0.00051557,2]
[326984684,1715680232574,-153.0,0.00051557,2]
[326984686,1715680232583,-153.0,0.00051557,2]
[326984688,1715680232592,-159.587778,0.00051918,2]
[326984690,1715680232601,-153.0,0.00052516,2]
[326984692,1715680232610,-153.0,0.00052516,2]
[326984694,1715680232619,-153.0,0.00052516,2]
[326984696,1715680232629,-153.0,0.00052516,2]
[326984698,1715680232638,-153.0,0.00052516,2]
[326984700,1715680232647,-175.05153097,0.00061167,2]
[326984702,1715680232657,-606.37705008,0.0007,7]
[326984704,1715680232666,-8101.51705078,0.00074955,4]
[326984706,1715680232675,-1883.45234337,0.00074956,7]
[326984708,1715680232684,-1566.47,0.0007799,3]
[326984710,1715680232694,-146483.24603968,0.00078,4]
[326984713,1715680232707,-3384.44279168,0.00078,4]
[326984715,1715680232718,-20865.75473378,0.00078,4]
[326984717,1715680232728,-175.05153097,0.000793,2]
[326984719,1715680232736,-160.0,0.000794,60]
[326984721,1715680232746,-159.587778,0.00080274,120]
[326984723,1715680232755,-150.0,0.00099365,120]
[326984725,1715680232765,-1098.58750486,0.001,120]
[326984727,1715680232774,-159.587778,0.0010863,120]
[326984729,1715680232783,-159.587778,0.00136986,120]
[326984731,1715680232792,-2000.0,0.001741,120]
[326984733,1715680232801,-2214.29337993,0.001742,61]
[326984735,1715680232810,-24450.77028821,0.001742,120]
[326984912,1715680238409,-223.42612956,0.00037354,15]
[326984913,1715680238420,-500.0,0.00037354,15]
[326984914,1715680238430,-500.0,0.00037354,15]
[326984915,1715680238439,-500.0,0.00037354,15]
[326984916,1715680238448,-500.0,0.00037354,15]
[326984917,1715680238457,-500.0,0.00037354,15]
[326984918,1715680238467,-255.94975755,0.00037354,15]
[326984919,1715680238476,-500.0,0.00037354,15]
[326984920,1715680238485,-500.0,0.00037354,15]
[326984921,1715680238495,-500.0,0.00037354,15]
[326984922,1715680238503,-552.00347152,0.00037354,15]
[326984923,1715680238513,-500.0,0.00037354,15]
[326984924,1715680238524,-600.72857653,0.00037354,15]
[326984925,1715680238534,-500.0,0.00037354,15]
[326984926,1715680238543,-500.0,0.00037354,15]
[326984927,1715680238552,-537.23343591,0.00037354,15]
[326984928,1715680238561,-500.0,0.00037354,15]
[326984929,1715680238571,-500.0,0.00037354,15]
[326984930,1715680238580,-500.0,0.00037354,15]
[326984931,1715680238589,-500.0,0.00037354,15]
[326984932,1715680238599,-500.0,0.00037354,15]
[326984933,1715680238608,-500.0,0.00037354,15]
[326984934,1715680238617,-500.0,0.00037354,15]
[326984935,1715680238626,-500.0,0.00037354,15]
[326984936,1715680238635,-500.0,0.00037354,15]
[326984937,1715680238645,-500.0,0.00052055,31]
[326984938,1715680238654,-500.0,0.00052055,31]
[326984939,1715680238664,-500.0,0.00052055,31]
[326984940,1715680238673,-174.62736127,0.00052055,31]
[326984941,1715680238683,-450.0,0.00065753,120]
[326984942,1715680238692,-34727.71275387,0.001742,120]
[326984943,1715680238703,-6189.0415356,0.001742,120]
[326984957,1715680240243,-2915.18792289,0.001742,120]
[326984958,1715680240353,-320.00166011,0.001742,120]
[326985026,1715680246073,-14303.72321058,0.00025,2]
[326985028,1715680246084,-1863.17137777,0.00025,2]
[326985030,1715680246097,-400.46869514,0.00025,2]
[326985031,1715680246108,-154.79876161,0.00035,4]
[326985032,1715680246117,-1898.53683844,0.0004,4]
[326985033,1715680246126,-203.01242509,0.001742,120]
[326985034,1715680253643,485.35927061,0.0002,2]
[326985114,1715680322621,-1883.45234337,0.00020912,2]
[326985115,1715680322650,-154.79876161,0.00020913,2]
[326985116,1715680322676,-157.22766132,0.00020913,2]
[326985117,1715680327228,-400.46869514,0.00025,2]
[326985118,1715680327253,-16166.89458835,0.00025,2]
[326985119,1715680340656,16166.89458835,0.00025,2]
[326985120,1715680341754,500.0,0.00024999,2]
[326985121,1715680343999,399.38843959,0.00025,2]
[326985122,1715680344547,154.79876161,0.00020913,2]
[326985123,1715680363284,7778.91821045,0.00025,2]
[326985124,1715680363310,7259.71638498,0.00025,2]
[326985125,1715680364531,154.79876161,0.00020913,2]
[326985126,1715680382561,154.79876161,0.00020913,2]
[326985460,1715680594107,1055.4,0.00020913,2]
[326985461,1715680638845,155.16895454,0.00020913,2]
[326985462,1715680644521,300.3891002,0.00020913,2]
[326985463,1715680647715,240.73228948,0.00020913,2]
[326985464,1715680649091,204.46074535,0.00020913,2]
[326985465,1715680653221,303.23887449,0.00020913,2]
[326985466,1715680679082,300.04280771,0.00020913,2]
[326985804,1715680887426,157.22766132,0.00020913,2]
[326985827,1715681432856,-221.44137162,0.00028,2]
[326985828,1715681432866,-455.63606366,0.00032,4]
[326985892,1715681438884,-54.7004615,0.00032,4]
[326985895,1715681438894,-467.5754666,0.00034,4]
[326985897,1715681438903,-362.1287,0.00045,30]
[326985899,1715681438912,-151.0,0.0005,120]
[326985901,1715681438921,-311.6568079,0.00059721,60]
[326985903,1715681438930,-318.2619039,0.00059721,2]
[326985905,1715681438939,-172.800379,0.00078142,2]
[326985907,1715681438950,-151.0,0.00078329,120]
[326985909,1715681438959,-30.94123112,0.00079452,120]
[326985942,1715681443329,-586.96861622,0.00079452,120]
[326985943,1715681443339,-166.666666,0.00088601,2]
[326985944,1715681443348,-166.666666,0.00090833,2]
[326985945,1715681443357,-166.666666,0.00093066,2]
[326985946,1715681443366,-151.0,0.00106658,120]
[326985947,1715681443376,-151.0,0.00134986,120]
[326985948,1715681443387,-358.79,0.0015,120]
[326985949,1715681443396,-151.0,0.00163315,120]
[326985950,1715681443405,-3868.0,0.00171,120]
[326985951,1715681443415,-411.9586858,0.00172649,120]
[326985952,1715681443424,-9.88130706,0.00172976,120]
[326985953,1715681443438,-402.07737874,0.00172976,120]
[326985954,1715681443449,-411.9586858,0.00173353,120]
[326985955,1715681443461,-411.9586858,0.0017367,120]
[326985956,1715681443471,-774.00524966,0.00173851,30]
[326985958,1715681443752,-138.27854316,0.00173851,30]
[326985959,1715681443762,-411.9586858,0.00173961,120]
[326985960,1715681443771,-373.70776263,0.00174198,30]
[326985961,1715681443783,-401.95540969,0.00174198,30]
[326985962,1715681443792,-334.7883342,0.00174198,30]
[326985963,1715681443802,-3.33038786,0.00174199,30]
[326985970,1715681446236,-166.666666,0.00123044,2]
[326985972,1715681446246,-166.666666,0.00126398,2]
[326985974,1715681446256,-166.666666,0.00129753,2]
[326985976,1715681446265,-166.666666,0.00133108,2]
[326985978,1715681446274,-166.666666,0.00136462,2]
[326985980,1715681446284,-166.666666,0.00139817,2]
[326985982,1715681446293,-306.28248015,0.00174199,30]
[326985984,1715681446304,-1747.7601927,0.001742,30]
[326985986,1715681446314,-411.9586858,0.00174407,120]
[326985988,1715681446323,-794.85938995,0.00174431,120]
[326985989,1715681446333,-411.9586858,0.00174739,120]
[326985990,1715681446343,-411.958686,0.00174877,120]
[326985991,1715681446352,-151.0,0.00191644,120]
[326985992,1715681446362,-1307.63049986,0.00191999,2]
[326985993,1715681446371,-313.54534628,0.00192,120]
[326985994,1715681446381,-2000.0,0.002,120]
[326985995,1715681446390,-450.0,0.002,120]
[326985996,1715681446399,-155.00529432,0.002,120]
[326985997,1715681446408,-172.800379,0.00215403,2]
[326985998,1715681446420,-151.0,0.00219973,120]
[326985999,1715681446430,-3868.0,0.002389,120]
[326986000,1715681446439,-3868.0,0.002479,120]
[326986001,1715681446449,-151.0,0.00248301,120]
[326986002,1715681446458,-499.999998,0.00249,120]
[326986003,1715681446471,-255.46641162,0.0025,120]
[326986004,1715681446481,-241.1515357,0.0025,120]
[326986005,1715681446491,-5000.0,0.0027,45]
[326986006,1715681446500,-500.0,0.00270996,31]
[326986007,1715681446509,-393.1602159,0.00270996,31]
[326986008,1715681446518,-217.69744054,0.00270996,31]
[326986009,1715681446528,-3868.0,0.00271,120]
[326986010,1715681446538,-1305.39,0.00273963,3]
[326986011,1715681446547,-1087.83,0.00273963,3]
[326986012,1715681446558,-465.60104145,0.00273972,120]
[326986013,1715681446567,-500.0,0.00273972,120]
[326986014,1715681446576,-500.0,0.00273972,120]
[326986015,1715681446585,-361.17003077,0.00273972,120]
[326986016,1715681446595,-500.0,0.00273972,120]
[326986017,1715681446604,-500.0,0.00273972,120]
[326986018,1715681446613,-530.21857296,0.00273972,120]
[326986019,1715681446622,-500.0,0.00273972,120]
[326986020,1715681446631,-500.0,0.00273972,120]
[326986021,1715681446640,-500.0,0.00273972,120]
[326986022,1715681446649,-500.0,0.00273972,120]
[326986023,1715681446658,-500.0,0.00273972,120]
[326986024,1715681446667,-500.0,0.00273972,120]
[326986025,1715681446676,-500.0,0.00273972,120]
[326986026,1715681446686,-395.79141871,0.00273972,120]
[326986027,1715681446695,-500.0,0.00273972,120]
[326986028,1715681446704,-500.0,0.00273972,120]
[326986029,1715681446713,-500.0,0.00273972,120]
[326986030,1715681446722,-500.0,0.00273972,120]
[326986031,1715681446732,-500.0,0.00273972,120]
[326986032,1715681446741,-500.0,0.00273972,120]
[326986033,1715681446750,-500.0,0.00273972,120]
[326986034,1715681446759,-500.0,0.00273972,120]
[326986035,1715681446768,-500.0,0.00273972,120]
[326986036,1715681446777,-151.0,0.00273973,120]
[326986037,1715681446786,-151.0,0.00273973,120]
[326986038,1715681446795,-151.0,0.00273973,120]
[326986039,1715681446805,-151.0,0.00273973,120]
[326986040,1715681446814,-151.0,0.00273973,120]
[326986041,1715681446823,-151.0,0.00273973,120]
[326986042,1715681446832,-151.0,0.00273973,120]
[326986043,1715681446842,-151.0,0.00273973,120]
[326986044,1715681446851,-151.0,0.00273973,120]
[326986045,1715681446863,-151.0,0.00273973,120]
[326986046,1715681446872,-151.0,0.00273973,120]
[326986047,1715681446883,-151.0,0.00273973,120]
[326986048,1715681446893,-212.348655,0.00273973,120]
[326986049,1715681446903,-151.0,0.00273973,120]
[326986050,1715681446914,-173.197987,0.00273973,120]
[326986051,1715681446925,-158.540201,0.00273973,120]
[326986052,1715681446934,-158.540201,0.00273973,120]
[326986053,1715681446944,-158.540201,0.00273973,120]
[326986054,1715681446955,-158.540201,0.00273973,120]
[326986055,1715681446965,-158.540201,0.00273973,120]
[326986056,1715681446975,-158.540201,0.00273973,120]
[326986057,1715681446985,-158.540201,0.00273973,120]
[326986058,1715681446996,-158.540201,0.00273973,120]
[326986059,1715681447095,-158.540201,0.00273973,120]
[326986060,1715681447105,-158.540201,0.00273973,120]
[326986061,1715681447114,-158.540201,0.00273973,120]
[326986062,1715681447123,-158.540201,0.00273973,120]
[326986063,1715681447132,-158.540201,0.00273973,120]
[326986064,1715681447142,-158.540201,0.00273973,120]
[326986065,1715681447151,-158.540201,0.00273973,120]
[326986066,1715681447161,-158.540201,0.00273973,120]
[326986067,1715681447172,-158.540201,0.00273973,120]
[326986068,1715681447182,-158.540201,0.00273973,120]
[326986069,1715681447191,-158.540201,0.00273973,120]
[326986070,1715681447201,-158.540203,0.00273973,120]
[326986071,1715681447210,-151.0,0.00273973,120]
[326986072,1715681447219,-151.0,0.00273973,120]
[326986073,1715681447231,-151.0,0.00273973,120]
[326986074,1715681447240,-151.0,0.00273973,120]
[326986075,1715681447250,-151.0,0.00273973,120]
[326986076,1715681447259,-151.0,0.00273973,120]
[326986077,1715681447268,-151.0,0.00273973,120]
[326986078,1715681447277,-151.0,0.00273973,120]
[326986079,1715681447287,-151.0,0.00273973,120]
[326986080,1715681447296,-151.0,0.00273973,120]
[326986081,1715681447309,-151.0,0.00273973,120]
[326986082,1715681447319,-151.0,0.00273973,120]
[326986083,1715681447328,-170.696304,0.00273973,120]
[326986084,1715681447338,-245.464254,0.00273973,120]
[326986085,1715681447348,-151.0,0.00273973,120]
[326986086,1715681447357,-151.0,0.00273973,120]
[326986087,1715681447367,-151.0,0.00273973,120]
[326986088,1715681447376,-151.0,0.00273973,120]
[326986089,1715681447386,-151.0,0.00273973,120]
[326986090,1715681447395,-151.0,0.00273973,120]
[326986091,1715681447405,-151.0,0.00273973,120]
[326986092,1715681447414,-190.013424,0.00273973,120]
[326986093,1715681447423,-204.298841,0.00273973,120]
[326986094,1715681447432,-151.0,0.00273973,120]
[326986095,1715681447441,-151.0,0.00273973,120]
[326986096,1715681447454,-151.0,0.00273973,120]
[326986097,1715681447464,-251.674222,0.00273973,120]
[326986098,1715681447473,-151.0,0.00273973,120]
[326986099,1715681447482,-260.347414,0.00273973,120]
[326986100,1715681447494,-724.758834,0.00273973,2]
[326986101,1715681447503,-724.758834,0.00273973,2]
[326986102,1715681447513,-724.758834,0.00273973,2]
[326986103,1715681447524,-724.758834,0.00273973,2]
[326986104,1715681447534,-724.758834,0.00273973,2]
[326986105,1715681447544,-724.758834,0.00273973,2]
[326986106,1715681447556,-151.0,0.00273973,120]
[326986107,1715681447565,-724.758834,0.00273973,2]
[326986108,1715681447575,-151.0,0.00273973,120]
[326986109,1715681447584,-151.0,0.00273973,120]
[326986110,1715681447594,-151.0,0.00273973,120]
[326986111,1715681447603,-724.758834,0.00273973,2]
[326986112,1715681447613,-151.0,0.00273973,120]
[326986113,1715681447622,-174.636664,0.00273973,120]
[326986114,1715681447632,-724.758834,0.00273973,2]
[326986115,1715681447641,-724.758834,0.00273973,2]
[326986116,1715681447651,-724.758834,0.00273973,2]
[326986117,1715681447660,-724.758834,0.00273973,2]
[326986118,1715681447669,-724.758834,0.00273973,2]
[326986119,1715681447679,-724.758834,0.00273973,2]
[326986120,1715681447688,-724.758834,0.00273973,2]
[326986121,1715681447697,-724.758834,0.00273973,2]
[326986122,1715681447706,-724.758834,0.00273973,2]
[326986123,1715681447714,-724.758834,0.00273973,2]
[326986124,1715681447723,-724.758834,0.00273973,2]
[326986125,1715681447732,-151.0,0.00273973,120]
[326986126,1715681447741,-151.0,0.00273973,120]
[326986127,1715681447750,-151.0,0.00273973,120]
[326986128,1715681447759,-151.0,0.00273973,120]
[326986129,1715681447768,-151.0,0.00273973,120]
[326986130,1715681447777,-151.0,0.00273973,120]
[326986131,1715681447786,-151.0,0.00273973,120]
[326986132,1715681447794,-151.0,0.00273973,120]
[326986133,1715681447804,-561.48119,0.00273973,120]
[326986134,1715681447813,-561.48119,0.00273973,120]
[326986135,1715681447822,-561.48119,0.00273973,120]
[326986136,1715681447831,-561.48119,0.00273973,120]
[326986137,1715681447840,-561.48119,0.00273973,120]
[326986138,1715681447848,-561.48119,0.00273973,120]
[326986139,1715681447857,-561.48119,0.00273973,120]
[326986140,1715681447866,-561.48119,0.00273973,120]
[326986141,1715681447875,-561.48119,0.00273973,120]
[326986142,1715681447884,-561.48119,0.00273973,120]
[326986143,1715681447892,-561.48119,0.00273973,120]
[326986144,1715681447901,-561.48119,0.00273973,120]
[326986145,1715681447910,-561.48119,0.00273973,120]
[326986146,1715681447919,-561.48119,0.00273973,120]
[326986147,1715681447928,-151.0,0.00273973,120]
[326986148,1715681447938,-151.0,0.00273973,120]
[326986149,1715681447947,-151.0,0.00273973,120]
[326986150,1715681447956,-151.0,0.00273973,120]
[326986151,1715681447965,-151.0,0.00273973,120]
[326986152,1715681447975,-561.48119,0.00273973,120]
[326986153,1715681447984,-561.48119,0.00273973,120]
[326986154,1715681447993,-151.0,0.00273973,120]
[326986155,1715681448002,-561.48119,0.00273973,120]
[326986156,1715681448011,-151.0,0.00273973,120]
[326986157,1715681448020,-561.48119,0.00273973,120]
[326986158,1715681448030,-151.0,0.00273973,120]
[326986159,1715681448039,-561.48119,0.00273973,120]
[326986160,1715681448048,-151.0,0.00273973,120]
[326986161,1715681448058,-151.0,0.00273973,120]
[326986162,1715681448067,-151.0,0.00273973,120]
[326986163,1715681448076,-282.0,0.00273973,120]
[326986164,1715681448086,-281.190719,0.00273973,120]
[326986165,1715681448095,-185.82185,0.00273973,120]
[326986166,1715681448104,-185.82185,0.00273973,120]
[326986167,1715681448114,-185.82185,0.00273973,120]
[326986168,1715681448123,-185.82185,0.00273973,120]
[326986169,1715681448132,-185.82185,0.00273973,120]
[326986170,1715681448141,-185.82185,0.00273973,120]
[326986171,1715681448151,-185.82185,0.00273973,120]
[326986172,1715681448160,-185.82185,0.00273973,120]
[326986173,1715681448169,-185.82185,0.00273973,120]
[326986174,1715681448178,-185.82185,0.00273973,120]
[326986175,1715681448187,-185.82185,0.00273973,120]
[326986176,1715681448196,-185.82185,0.00273973,120]
[326986177,1715681448205,-185.82185,0.00273973,120]
[326986178,1715681448214,-185.82185,0.00273973,120]
[326986179,1715681448223,-185.82185,0.00273973,120]
[326986180,1715681448233,-185.82185,0.00273973,120]
[326986181,1715681448241,-185.82185,0.00273973,120]
[326986182,1715681448250,-185.82185,0.00273973,120]
[326986183,1715681448259,-185.82185,0.00273973,120]
[326986184,1715681448269,-151.0,0.00273973,120]
[326986185,1715681448278,-151.0,0.00273973,120]
[326986186,1715681448287,-151.0,0.00273973,120]
[326986187,1715681448296,-151.0,0.00273973,120]
[326986188,1715681448307,-151.0,0.00273973,120]
[326986189,1715681448316,-151.0,0.00273973,120]
[326986190,1715681448325,-151.0,0.00273973,120]
[326986191,1715681448335,-151.0,0.00273973,120]
[326986192,1715681448343,-151.0,0.00273973,120]
[326986193,1715681448353,-151.0,0.00273973,120]
[326986194,1715681448362,-151.0,0.00273973,120]
[326986195,1715681448371,-151.0,0.00273973,120]
[326986196,1715681448380,-151.0,0.00273973,120]
[326986197,1715681448389,-151.0,0.00273973,120]
[326986198,1715681448398,-151.0,0.00273973,120]
[326986199,1715681448407,-151.0,0.00273973,120]
[326986200,1715681448416,-151.0,0.00273973,120]
[326986201,1715681448426,-151.0,0.00273973,120]
[326986202,1715681448434,-151.0,0.00273973,120]
[326986203,1715681448443,-151.0,0.00273973,120]
[326986204,1715681448457,-151.0,0.00273973,120]
[326986205,1715681448467,-151.0,0.00273973,120]
[326986206,1715681448475,-151.0,0.00273973,120]
[326986207,1715681448484,-151.0,0.00273973,120]
[326986208,1715681448494,-250.760645,0.00273973,120]
[326986209,1715681448503,-269.967704,0.00273973,120]
[326986210,1715681448512,-151.0,0.00273973,120]
[326986211,1715681448521,-151.0,0.00273973,120]
[326986212,1715681448531,-151.0,0.00273973,120]
[326986213,1715681448542,-151.0,0.00273973,120]
[326986214,1715681448551,-151.0,0.00273973,120]
[326986215,1715681448560,-151.0,0.00273973,120]
[326986216,1715681448570,-151.0,0.00273973,120]
[326986217,1715681448579,-151.0,0.00273973,120]
[326986218,1715681448588,-151.0,0.00273973,120]
[326986219,1715681448597,-151.0,0.00273973,120]
[326986220,1715681448606,-151.0,0.00273973,120]
[326986221,1715681448615,-265.979877,0.00273973,120]
[326986222,1715681448624,-617.24034,0.00273973,120]
[326986223,1715681448633,-617.24034,0.00273973,120]
[326986224,1715681448642,-617.24034,0.00273973,120]
[326986225,1715681448651,-617.24034,0.00273973,120]
[326986226,1715681448660,-617.24034,0.00273973,120]
[326986227,1715681448670,-617.24034,0.00273973,120]
[326986228,1715681448679,-617.24034,0.00273973,120]
[326986229,1715681448690,-617.24034,0.00273973,120]
[326986230,1715681448699,-617.24034,0.00273973,120]
[326986231,1715681448710,-617.24034,0.00273973,120]
[326986232,1715681448719,-617.24034,0.00273973,120]
[326986233,1715681448728,-617.24034,0.00273973,120]
[326986234,1715681448737,-617.24034,0.00273973,120]
[326986235,1715681448746,-617.24034,0.00273973,120]
[326986236,1715681448755,-617.24034,0.00273973,120]
[326986237,1715681448764,-617.24034,0.00273973,120]
[326986238,1715681448773,-617.24034,0.00273973,120]
[326986239,1715681448782,-617.24034,0.00273973,120]
[326986240,1715681448791,-617.24034,0.00273973,120]
[326986241,1715681448800,-617.24034,0.00273973,120]
[326986242,1715681448810,-151.0,0.0027663,120]
[326986243,1715681448819,-156.7022557,0.00289,120]
[326986244,1715681448827,-155.00529432,0.003,120]
[326986245,1715681448836,-13944.0,0.003,120]
[326986246,1715681448846,-450.0,0.003,120]
[326986247,1715681448855,-151.0,0.00304959,120]
[326986248,1715681448864,-151.0,0.00333288,120]
[326986249,1715681448873,-151.0,0.00361616,120]
[326986250,1715681448882,-3868.0,0.00371,120]
[326986251,1715681448892,-2191.18832588,0.00382768,99]
[326986252,1715681448901,-162.23201121,0.00385,120]
[326986253,1715681448910,-151.0,0.00389945,120]
[326986254,1715681448920,-13944.0,0.004,120]
[326986255,1715681448929,-450.0,0.004,120]
[326986256,1715681448938,-155.00529432,0.004,120]
[326986257,1715681448947,-2000.0,0.004,120]
[326986258,1715681448956,-151.0,0.00418274,120]
[326986259,1715681448965,-20000.0,0.00429,120]
[326986260,1715681448974,-5000.0,0.0043,120]
[326986261,1715681448983,-153.0,0.00438356,120]
[326986262,1715681448992,-153.0,0.00438356,120]
[326986263,1715681449001,-153.0,0.00438356,120]
[326986264,1715681449010,-153.0,0.00438356,120]
[326986265,1715681449018,-153.0,0.00438356,120]
[326986266,1715681449028,-153.0,0.00438356,120]
[326986267,1715681449037,-153.0,0.00438356,120]
[326986268,1715681449046,-153.0,0.00438356,120]
[326986269,1715681449056,-153.0,0.00438356,120]
[326986270,1715681449064,-153.0,0.00438356,120]
[326986271,1715681449074,-153.0,0.00438356,120]
[326986272,1715681449083,-153.0,0.00438356,120]
[326986273,1715681449092,-153.0,0.00438356,120]
[326986274,1715681449101,-153.0,0.00438356,120]
[326986275,1715681449110,-153.0,0.00438356,120]
[326986276,1715681449118,-153.0,0.00438356,120]
[326986277,1715681449127,-153.0,0.00438356,120]
[326986278,1715681449136,-153.0,0.00438356,120]
[326986279,1715681449145,-153.0,0.00438356,120]
[326986280,1715681449154,-153.0,0.00438356,120]
[326986281,1715681449163,-153.0,0.00438356,120]
[326986282,1715681449172,-153.0,0.00438356,120]
[326986283,1715681449181,-80000.0,0.004448,120]
[326986284,1715681449190,-151.0,0.00446603,120]
[326986285,1715681449199,-1837.21763024,0.0045,120]
[326986286,1715681449208,-2074.13,0.00471,120]
[326986287,1715681449217,-151.0,0.00474932,120]
[326986288,1715681449226,-156.7022557,0.00481,120]
[326986289,1715681449235,-1098.24866399,0.00489,120]
[326986290,1715681449245,-91861.07278782,0.004999,120]
[326986291,1715681453333,2735.46735366,0.00020913,2]
[326986292,1715681481604,7742.15740906,0.00020913,2]
[326986293,1715681488464,758.819217,0.00025,2]
[326986294,1715681489763,157.22766132,0.00020913,2]
[326986295,1715681491278,1219.12142398,0.00020913,2]
[326986296,1715681506312,758.819217,0.00025,2]
[326986300,1715681528306,903.26615764,0.00025,2]
[326986301,1715681623974,154.79876161,0.00020913,2]
[326986302,1715681647949,154.79876161,0.00020913,2]
[326986303,1715681661950,129.54969583,0.00020913,2]
[326986304,1715681661975,60.85278095,0.00020913,2]
[326986307,1715681795251,1434.35014698,0.00020913,2]
[326986308,1715681832350,508.72008298,0.00020913,2]
[326986310,1715681927574,157.18037118,0.00020913,2]
[326986311,1715681989458,1492.96955414,0.00020913,2]
[326986315,1715682187125,4778.56378028,0.00020913,2]
[326986316,1715682187150,18706.27582641,0.00020913,2]
[326986345,1715682474057,364.58612671,0.00020913,2]
[326986346,1715682501984,167.67033024,0.00020913,2]
[326986350,1715682563352,-467.5754666,0.00034,4]
[326986351,1715682563376,-1331.60225041,0.00035,7]
[326986352,1715682563399,-1331.60225041,0.000371,7]
[326986353,1715682563423,-1452.65700044,0.000392,11]
[326986354,1715682563447,-1452.65700044,0.000413,11]
[326986355,1715682563472,-946.65816039,0.000434,15]
[326986427,1715682633782,-150.0,0.00026123,2]
[326986441,1715682633910,-321.68612615,0.00028,2]
[326986443,1715682633923,-218.0,0.0003,2]
[326986445,1715682633932,-166.666666,0.00047062,2]
[326986447,1715682633942,-166.666666,0.00048345,2]
[326986449,1715682633951,-150.0,0.00049187,120]
[326986451,1715682633960,-166.666666,0.00049628,2]
[326986453,1715682633969,-151.0,0.0005,120]
[326986455,1715682633978,-166.666666,0.00050911,2]
[326986457,1715682633987,-166.666666,0.00052194,2]
[326986459,1715682633996,-166.666666,0.00053477,2]
[326986461,1715682634006,-150.80395486,0.00054323,2]
[326986463,1715682634015,-143.50727316,0.00055236,4]
[326986466,1715682634030,-158.10063656,0.00055236,4]
[326986468,1715682634039,-166.77710976,0.00057109,4]
[326986470,1715682634047,-125.59225717,0.00065753,120]
[326986472,1715682634059,-526.20774283,0.00065753,120]
[326986474,1715682634069,-5000.0,0.0008,120]
[326986476,1715682634078,-150.80395486,0.00081485,2]
[326986478,1715682634087,-150.0,0.00087385,120]
[326986480,1715682634096,-5000.0,0.00089,120]